[Event "Titled Tuesday Blitz May 03 Late 2022"]
[White "Yaran, Siar"]
[Black "Zhang, Derek"]
[WhiteFideId "6323006"]
[BlackFideId "2087871"]
[WhiteElo "1977"]
[BlackElo "2085"]
[Result "0-1"]
[Round "10"]
[TimeControl "180+1"]
[Date "2022.05.03"]
[WhiteClock "0:00:01"]
[BlackClock "0:00:03"]

1. e4 {[%clk 0:03:00]}  e6 {[%clk 0:03:00]} 2. d4 {[%clk 0:03:00]}  d5 {[%clk 0:03:00]} 3. exd5 {[%clk 0:03:00]}  exd5 {[%clk 0:03:01]} 4. c4 {[%clk 0:03:01]}  Nf6 {[%clk 0:03:00]} 5. Nc3 {[%clk 0:03:01]}  Be7 {[%clk 0:02:59]} 6. Bd3 {[%clk 0:03:01]}  Nbd7 {[%clk 0:02:56]} 7. h3 {[%clk 0:02:57]}  dxc4 {[%clk 0:02:56]} 8. Bxc4 {[%clk 0:02:58]}  Nb6 {[%clk 0:02:56]} 9. Bb3 {[%clk 0:02:58]}  c6 {[%clk 0:02:57]} 10. Nf3 {[%clk 0:02:58]}  O-O {[%clk 0:02:57]} 11. O-O {[%clk 0:02:59]}  Nfd5 {[%clk 0:02:57]} 12. a3 {[%clk 0:02:56]}  Be6 {[%clk 0:02:57]} 13. Bc2 {[%clk 0:02:56]}  f6 {[%clk 0:02:50]} 14. Qd3 {[%clk 0:02:51]}  g6 {[%clk 0:02:50]} 15. Bh6 {[%clk 0:02:48]}  Re8 {[%clk 0:02:49]} 16. Rfe1 {[%clk 0:02:19]}  Bf5 {[%clk 0:02:48]} 17. Qd1 {[%clk 0:02:17]}  Bxc2 {[%clk 0:02:47]} 18. Qxc2 {[%clk 0:02:17]}  Nxc3 {[%clk 0:02:34]} 19. bxc3 {[%clk 0:02:18]}  Qd5 {[%clk 0:02:32]} 20. Re2 {[%clk 0:02:13]}  Bf8 {[%clk 0:02:29]} 21. Bxf8 {[%clk 0:02:11]}  Kxf8 {[%clk 0:02:28]} 22. Rae1 {[%clk 0:02:10]}  Qc4 {[%clk 0:02:23]} 23. Rxe8+ {[%clk 0:01:13]}  Rxe8 {[%clk 0:02:24]} 24. Rxe8+ {[%clk 0:01:14]}  Kxe8 {[%clk 0:02:25]} 25. Qe4+ {[%clk 0:01:14]}  Kf7 {[%clk 0:02:23]} 26. Qf4 {[%clk 0:01:14]}  Kg7 {[%clk 0:02:01]} 27. Qb8 {[%clk 0:01:11]}  Qf7 {[%clk 0:01:36]} 28. Qxa7 {[%clk 0:01:08]}  Nd5 {[%clk 0:01:37]} 29. Qc5 {[%clk 0:00:56]}  Qd7 {[%clk 0:01:29]} 30. a4 {[%clk 0:00:41]}  Nf4 {[%clk 0:01:25]} 31. Qb4 {[%clk 0:00:20]}  h5 {[%clk 0:01:12]} 32. Qb2 {[%clk 0:00:19]}  g5 {[%clk 0:01:11]} 33. c4 {[%clk 0:00:16]}  g4 {[%clk 0:01:05]} 34. hxg4 {[%clk 0:00:15]}  Qxg4 {[%clk 0:01:05]} 35. Ne1 {[%clk 0:00:15]}  Qd1 {[%clk 0:00:48]} 36. Qxb7+ {[%clk 0:00:15]}  Kg6 {[%clk 0:00:43]} 37. Qe7 {[%clk 0:00:15]}  Ne2+ {[%clk 0:00:27]} 38. Kf1 {[%clk 0:00:14]}  Nxd4 {[%clk 0:00:27]} 39. Qe4+ {[%clk 0:00:13]}  Kf7 {[%clk 0:00:25]} 40. Qh7+ {[%clk 0:00:09]}  Ke6 {[%clk 0:00:25]} 41. Qe4+ {[%clk 0:00:10]}  Kd6 {[%clk 0:00:26]} 42. Qf4+ {[%clk 0:00:10]}  Kc5 {[%clk 0:00:26]} 43. Qe3 {[%clk 0:00:07]}  Kxc4 {[%clk 0:00:23]} 44. g3 {[%clk 0:00:07]}  c5 {[%clk 0:00:18]} 45. Kg2 {[%clk 0:00:07]}  Kd5 {[%clk 0:00:16]} 46. a5 {[%clk 0:00:07]}  Qa1 {[%clk 0:00:13]} 47. Qd2 {[%clk 0:00:04]}  Qa3 {[%clk 0:00:11]} 48. Nc2 {[%clk 0:00:03]}  Qf3+ {[%clk 0:00:10]} 49. Kh2 {[%clk 0:00:03]}  h4 {[%clk 0:00:06]} 50. Ne3+ {[%clk 0:00:01]}  Kc6 {[%clk 0:00:04]} 51. gxh4 {[%clk 0:00:02]}  Qf4+ {[%clk 0:00:04]} 52. Kg2 {[%clk 0:00:02]}  Qe4+ {[%clk 0:00:03]} 53. Kf1 {[%clk 0:00:01]}  Qh1# {[%clk 0:00:03]} 0-1


[Site "https://www.chess.com"]

[Event "Titled Tuesday Blitz May 03 Late 2022"]
[White "Andreikin, Dmitry"]
[Black "Melkumyan, Hrant"]
[WhiteFideId "4158814"]
[BlackFideId "13302485"]
[WhiteElo "2736"]
[BlackElo "2604"]
[Result "1-0"]
[Round "11"]
[TimeControl "180+1"]
[Date "2022.05.03"]
[WhiteClock "0:00:20"]
[BlackClock "0:00:02"]

1. Nf3 {[%clk 0:03:00]}  d5 {[%clk 0:02:34]} 2. d4 {[%clk 0:03:00]}  Nf6 {[%clk 0:02:33]} 3. c4 {[%clk 0:03:01]}  e6 {[%clk 0:02:33]} 4. g3 {[%clk 0:03:00]}  dxc4 {[%clk 0:02:30]} 5. Bg2 {[%clk 0:03:00]}  Bb4+ {[%clk 0:02:30]} 6. Bd2 {[%clk 0:02:59]}  a5 {[%clk 0:02:31]} 7. Qc2 {[%clk 0:02:57]}  c5 {[%clk 0:02:31]} 8. dxc5 {[%clk 0:02:55]}  Bxc5 {[%clk 0:02:32]} 9. O-O {[%clk 0:02:53]}  Nbd7 {[%clk 0:02:32]} 10. Na3 {[%clk 0:02:51]}  b6 {[%clk 0:02:28]} 11. Ng5 {[%clk 0:02:35]}  Ba6 {[%clk 0:02:17]} 12. Bxa8 {[%clk 0:02:25]}  Qxa8 {[%clk 0:02:18]} 13. Nxc4 {[%clk 0:02:22]}  O-O {[%clk 0:02:18]} 14. b3 {[%clk 0:02:17]}  Rc8 {[%clk 0:02:15]} 15. Qb2 {[%clk 0:02:17]}  Qd5 {[%clk 0:02:00]} 16. Rad1 {[%clk 0:02:09]}  Bb7 {[%clk 0:01:56]} 17. Nf3 {[%clk 0:02:00]}  Qh5 {[%clk 0:01:54]} 18. Bc3 {[%clk 0:01:37]}  Ng4 {[%clk 0:01:17]} 19. h4 {[%clk 0:01:37]}  Ndf6 {[%clk 0:01:05]} 20. Bxf6 {[%clk 0:01:35]}  gxf6 {[%clk 0:01:04]} 21. Nd6 {[%clk 0:01:27]}  Nxf2 {[%clk 0:00:29]} 22. Rxf2 {[%clk 0:01:16]}  Rd8 {[%clk 0:00:29]} 23. Qxf6 {[%clk 0:01:10]}  Rxd6 {[%clk 0:00:14]} 24. Rxd6 {[%clk 0:01:03]}  Bxd6 {[%clk 0:00:15]} 25. Ng5 {[%clk 0:00:54]}  Bc5 {[%clk 0:00:13]} 26. Qd8+ {[%clk 0:00:33]}  Kg7 {[%clk 0:00:13]} 27. Nxe6+ {[%clk 0:00:32]}  fxe6 {[%clk 0:00:11]} 28. Qf6+ {[%clk 0:00:32]}  Kg8 {[%clk 0:00:11]} 29. Qxe6+ {[%clk 0:00:32]}  Kh8 {[%clk 0:00:09]} 30. Qf6+ {[%clk 0:00:23]}  Kg8 {[%clk 0:00:09]} 31. Qd8+ {[%clk 0:00:23]}  Kg7 {[%clk 0:00:06]} 32. Qc7+ {[%clk 0:00:24]}  Kh8 {[%clk 0:00:05]} 33. Qb8+ {[%clk 0:00:22]}  Kg7 {[%clk 0:00:03]} 34. Qxb7+ {[%clk 0:00:23]}  Kg8 {[%clk 0:00:03]} 35. Qc8+ {[%clk 0:00:22]}  Kg7 {[%clk 0:00:04]} 36. Qd7+ {[%clk 0:00:22]}  Kg8 {[%clk 0:00:04]} 37. Qe6+ {[%clk 0:00:21]}  Kg7 {[%clk 0:00:04]} 38. e3 {[%clk 0:00:19]}  Qd1+ {[%clk 0:00:02]} 39. Kg2 {[%clk 0:00:20]} 1-0


[Site "https://www.chess.com"]

[Event "Titled Tuesday Blitz May 03 Late 2022"]
[White "Carrasco Miranda, Andres"]
[Black "Sailer, Mike"]
[WhiteFideId "3405990"]
[BlackFideId "2012901"]
[WhiteElo "2177"]
[BlackElo "2109"]
[Result "1-0"]
[Round "11"]
[TimeControl "180+1"]
[Date "2022.05.03"]
[WhiteClock "0:01:03"]
[BlackClock "0:01:26"]

1. d4 {[%clk 0:03:00]}  d5 {[%clk 0:03:00]} 2. c4 {[%clk 0:03:00]}  Bf5 {[%clk 0:03:00]} 3. cxd5 {[%clk 0:02:59]}  Bxb1 {[%clk 0:03:00]} 4. Qa4+ {[%clk 0:02:58]}  Qd7 {[%clk 0:03:00]} 5. Qxd7+ {[%clk 0:02:58]}  Nxd7 {[%clk 0:03:01]} 6. Rxb1 {[%clk 0:02:58]}  Ngf6 {[%clk 0:03:01]} 7. Nf3 {[%clk 0:02:56]}  Nb6 {[%clk 0:03:01]} 8. e3 {[%clk 0:02:16]}  Nbxd5 {[%clk 0:03:00]} 9. a3 {[%clk 0:02:15]}  e6 {[%clk 0:02:59]} 10. Bb5+ {[%clk 0:02:12]}  c6 {[%clk 0:02:58]} 11. Bd3 {[%clk 0:02:12]}  Bd6 {[%clk 0:02:55]} 12. O-O {[%clk 0:01:58]}  Bc7 {[%clk 0:02:50]} 13. Bd2 {[%clk 0:01:57]}  h6 {[%clk 0:02:49]} 14. Rfc1 {[%clk 0:01:56]}  g5 {[%clk 0:02:46]} 15. b4 {[%clk 0:01:54]}  a6 {[%clk 0:02:45]} 16. a4 {[%clk 0:01:49]}  g4 {[%clk 0:02:43]} 17. Ne1 {[%clk 0:01:25]}  h5 {[%clk 0:02:42]} 18. b5 {[%clk 0:01:25]}  axb5 {[%clk 0:02:32]} 19. axb5 {[%clk 0:01:26]}  O-O {[%clk 0:02:13]} 20. bxc6 {[%clk 0:01:25]}  bxc6 {[%clk 0:02:13]} 21. Rxc6 {[%clk 0:01:26]}  Ba5 {[%clk 0:02:13]} 22. Bxa5 {[%clk 0:01:20]}  Rxa5 {[%clk 0:02:13]} 23. g3 {[%clk 0:01:16]}  Ra3 {[%clk 0:02:03]} 24. Bf1 {[%clk 0:01:12]}  Ne4 {[%clk 0:01:54]} 25. Bg2 {[%clk 0:01:12]}  Nd2 {[%clk 0:01:51]} 26. Rd1 {[%clk 0:01:10]}  Nb3 {[%clk 0:01:29]} 27. Bxd5 {[%clk 0:01:08]}  exd5 {[%clk 0:01:29]} 28. Rc3 {[%clk 0:01:05]}  Ra1 {[%clk 0:01:26]} 29. Rxa1 {[%clk 0:01:03]}  Nxa1 {[%clk 0:01:26]} 30. Ra3 {[%clk 0:01:03]} 1-0


[Site "https://www.chess.com"]

[Event "Titled Tuesday Blitz May 03 Late 2022"]
[White "Derraugh, Geordie"]
[Black "Yaran, Siar"]
[WhiteFideId "2603950"]
[BlackFideId "6323006"]
[WhiteElo "2116"]
[BlackElo "1977"]
[Result "0-1"]
[Round "11"]
[TimeControl "180+1"]
[Date "2022.05.03"]
[WhiteClock "0:00:02"]
[BlackClock "0:00:29"]

1. e4 {[%clk 0:03:00]}  e5 {[%clk 0:02:59]} 2. Nf3 {[%clk 0:03:00]}  Nc6 {[%clk 0:02:59]} 3. d4 {[%clk 0:03:00]}  d6 {[%clk 0:02:57]} 4. dxe5 {[%clk 0:02:59]}  Nxe5 {[%clk 0:02:58]} 5. Nxe5 {[%clk 0:02:59]}  dxe5 {[%clk 0:02:59]} 6. Qxd8+ {[%clk 0:02:59]}  Kxd8 {[%clk 0:03:00]} 7. Nc3 {[%clk 0:02:59]}  c6 {[%clk 0:03:00]} 8. Bc4 {[%clk 0:02:58]}  Ke7 {[%clk 0:03:00]} 9. Be3 {[%clk 0:02:56]}  Be6 {[%clk 0:02:59]} 10. Bc5+ {[%clk 0:02:55]}  Kf6 {[%clk 0:02:59]} 11. Bxf8 {[%clk 0:02:47]}  Rxf8 {[%clk 0:02:59]} 12. Bb3 {[%clk 0:02:45]}  Ne7 {[%clk 0:02:56]} 13. O-O {[%clk 0:02:44]}  Rd8 {[%clk 0:02:56]} 14. f4 {[%clk 0:02:43]}  exf4 {[%clk 0:02:55]} 15. Rxf4+ {[%clk 0:02:43]}  Ke5 {[%clk 0:02:55]} 16. Raf1 {[%clk 0:02:32]}  Bxb3 {[%clk 0:02:51]} 17. axb3 {[%clk 0:02:30]}  f6 {[%clk 0:02:50]} 18. R4f2 {[%clk 0:02:17]}  Rd7 {[%clk 0:02:44]} 19. Na4 {[%clk 0:02:05]}  b6 {[%clk 0:02:43]} 20. Nc3 {[%clk 0:01:57]}  Rhd8 {[%clk 0:02:41]} 21. Ra1 {[%clk 0:01:53]}  a5 {[%clk 0:02:40]} 22. g3 {[%clk 0:01:33]}  Rd2 {[%clk 0:02:39]} 23. Raf1 {[%clk 0:01:33]}  b5 {[%clk 0:02:31]} 24. Rc1 {[%clk 0:01:12]}  Rxf2 {[%clk 0:02:19]} 25. Kxf2 {[%clk 0:01:11]}  Rd2+ {[%clk 0:02:20]} 26. Ke3 {[%clk 0:01:03]}  Rxh2 {[%clk 0:02:15]} 27. Ne2 {[%clk 0:01:03]}  f5 {[%clk 0:01:54]} 28. exf5 {[%clk 0:00:24]}  Nxf5+ {[%clk 0:01:51]} 29. Kf3 {[%clk 0:00:24]}  h5 {[%clk 0:01:41]} 30. Re1 {[%clk 0:00:21]}  Kf6 {[%clk 0:01:36]} 31. Ra1 {[%clk 0:00:14]}  g5 {[%clk 0:01:34]} 32. Nc3 {[%clk 0:00:06]}  g4+ {[%clk 0:01:10]} 33. Ke4 {[%clk 0:00:06]}  Nxg3+ {[%clk 0:01:10]} 34. Kd3 {[%clk 0:00:05]}  h4 {[%clk 0:01:03]} 35. Rxa5 {[%clk 0:00:06]}  h3 {[%clk 0:01:00]} 36. Ra6 {[%clk 0:00:07]}  Rg2 {[%clk 0:00:56]} 37. Rxc6+ {[%clk 0:00:07]}  Kg5 {[%clk 0:00:57]} 38. Rc5+ {[%clk 0:00:02]}  Kh4 {[%clk 0:00:57]} 39. Nd5 {[%clk 0:00:02]}  h2 {[%clk 0:00:55]} 40. Nf4 {[%clk 0:00:03]}  Rf2 {[%clk 0:00:40]} 41. Ng6+ {[%clk 0:00:02]}  Kh3 {[%clk 0:00:40]} 42. Rc8 {[%clk 0:00:03]}  h1=Q {[%clk 0:00:30]} 43. Rh8+ {[%clk 0:00:03]}  Kg2 {[%clk 0:00:30]} 44. Rxh1 {[%clk 0:00:04]}  Nxh1 {[%clk 0:00:30]} 45. Nh4+ {[%clk 0:00:02]}  Kh3 {[%clk 0:00:29]} 0-1


[Site "https://www.chess.com"]

[Event "Titled Tuesday Blitz May 03 Late 2022"]
[White "Ferreira, Vitor Hugo Vieira"]
[Black "Trost, Edvin"]
[WhiteFideId "2119765"]
[BlackFideId "1729519"]
[WhiteElo "2165"]
[BlackElo "2160"]
[Result "0-1"]
[Round "11"]
[TimeControl "180+1"]
[Date "2022.05.03"]
[WhiteClock "0:00:03"]
[BlackClock "0:00:12"]

1. d4 {[%clk 0:02:33]}  d5 {[%clk 0:02:49]} 2. c4 {[%clk 0:02:33]}  e6 {[%clk 0:02:44]} 3. e3 {[%clk 0:02:33]}  Nf6 {[%clk 0:02:37]} 4. Nc3 {[%clk 0:02:32]}  Bb4 {[%clk 0:02:36]} 5. Nf3 {[%clk 0:02:32]}  O-O {[%clk 0:02:36]} 6. Bd3 {[%clk 0:01:55]}  dxc4 {[%clk 0:02:35]} 7. Bxc4 {[%clk 0:01:56]}  c5 {[%clk 0:02:35]} 8. O-O {[%clk 0:01:56]}  cxd4 {[%clk 0:02:34]} 9. exd4 {[%clk 0:01:56]}  b6 {[%clk 0:02:33]} 10. Qe2 {[%clk 0:01:55]}  Bb7 {[%clk 0:02:33]} 11. Rd1 {[%clk 0:01:55]}  Nbd7 {[%clk 0:02:29]} 12. Bg5 {[%clk 0:01:55]}  h6 {[%clk 0:02:24]} 13. Bh4 {[%clk 0:01:55]}  Be7 {[%clk 0:02:23]} 14. Rac1 {[%clk 0:01:54]}  Rc8 {[%clk 0:02:23]} 15. Ne5 {[%clk 0:01:51]}  Nxe5 {[%clk 0:02:19]} 16. dxe5 {[%clk 0:01:50]}  Nd5 {[%clk 0:02:19]} 17. Nxd5 {[%clk 0:01:38]}  Bxd5 {[%clk 0:02:11]} 18. Bxe7 {[%clk 0:01:37]}  Qxe7 {[%clk 0:02:11]} 19. Bxd5 {[%clk 0:01:37]}  exd5 {[%clk 0:02:11]} 20. Rxc8 {[%clk 0:01:37]}  Rxc8 {[%clk 0:02:12]} 21. Rxd5 {[%clk 0:01:37]}  Rc1+ {[%clk 0:02:12]} 22. Rd1 {[%clk 0:01:37]}  Rxd1+ {[%clk 0:02:12]} 23. Qxd1 {[%clk 0:01:37]}  Qxe5 {[%clk 0:02:13]} 24. Qd8+ {[%clk 0:01:31]}  Kh7 {[%clk 0:02:12]} 25. Qd3+ {[%clk 0:01:31]}  g6 {[%clk 0:02:13]} 26. Qb1 {[%clk 0:01:26]}  h5 {[%clk 0:02:11]} 27. h3 {[%clk 0:01:25]}  h4 {[%clk 0:02:11]} 28. b3 {[%clk 0:01:26]}  Kg7 {[%clk 0:02:10]} 29. a4 {[%clk 0:01:26]}  g5 {[%clk 0:02:10]} 30. Qd3 {[%clk 0:01:25]}  Qa1+ {[%clk 0:02:07]} 31. Kh2 {[%clk 0:01:25]}  Qe5+ {[%clk 0:02:08]} 32. g3 {[%clk 0:01:25]}  Qc5 {[%clk 0:02:01]} 33. Kg2 {[%clk 0:01:24]}  Qc6+ {[%clk 0:02:01]} 34. Qf3 {[%clk 0:01:24]}  Qe6 {[%clk 0:01:55]} 35. gxh4 {[%clk 0:01:22]}  gxh4 {[%clk 0:01:55]} 36. Qg4+ {[%clk 0:01:21]}  Qg6 {[%clk 0:01:04]} 37. Kf3 {[%clk 0:01:20]}  f5 {[%clk 0:01:00]} 38. Qxg6+ {[%clk 0:01:06]}  Kxg6 {[%clk 0:01:01]} 39. Kf4 {[%clk 0:01:04]}  Kf6 {[%clk 0:00:59]} 40. b4 {[%clk 0:01:03]}  a6 {[%clk 0:00:53]} 41. f3 {[%clk 0:01:03]}  b5 {[%clk 0:00:46]} 42. a5 {[%clk 0:01:03]}  Ke6 {[%clk 0:00:35]} 43. Kg5 {[%clk 0:01:03]}  Ke5 {[%clk 0:00:35]} 44. Kxh4 {[%clk 0:00:45]}  Kf4 {[%clk 0:00:32]} 45. Kh5 {[%clk 0:00:45]}  Kxf3 {[%clk 0:00:33]} 46. Kg6 {[%clk 0:00:45]}  f4 {[%clk 0:00:32]} 47. h4 {[%clk 0:00:46]}  Ke4 {[%clk 0:00:22]} 48. h5 {[%clk 0:00:46]}  f3 {[%clk 0:00:23]} 49. h6 {[%clk 0:00:47]}  f2 {[%clk 0:00:24]} 50. h7 {[%clk 0:00:48]}  f1=Q {[%clk 0:00:25]} 51. h8=Q {[%clk 0:00:49]}  Qf5+ {[%clk 0:00:25]} 52. Kg7 {[%clk 0:00:02]}  Qe5+ {[%clk 0:00:11]} 53. Kg8 {[%clk 0:00:03]}  Qxh8+ {[%clk 0:00:12]} 54. Kxh8 {[%clk 0:00:03]}  Kd5 {[%clk 0:00:12]} 0-1


[Site "https://www.chess.com"]

[Event "Titled Tuesday Blitz May 03 Late 2022"]
[White "Gascon Del Nogal, Jose Rafael"]
[Black "Gabrielian, Artur"]
[WhiteFideId "3902463"]
[BlackFideId "4131002"]
[WhiteElo "2473"]
[BlackElo "2440"]
[Result "1-0"]
[Round "11"]
[TimeControl "180+1"]
[Date "2022.05.03"]
[WhiteClock "0:00:03"]
[BlackClock "0:00:10"]

1. c4 {[%clk 0:03:00]}  Nf6 {[%clk 0:02:59]} 2. Nc3 {[%clk 0:02:57]}  g6 {[%clk 0:03:00]} 3. e4 {[%clk 0:02:56]}  Bg7 {[%clk 0:03:00]} 4. d4 {[%clk 0:02:55]}  d6 {[%clk 0:02:59]} 5. Be2 {[%clk 0:02:56]}  O-O {[%clk 0:02:59]} 6. Be3 {[%clk 0:02:56]}  e5 {[%clk 0:02:59]} 7. d5 {[%clk 0:02:55]}  Na6 {[%clk 0:02:59]} 8. g4 {[%clk 0:02:54]}  Nc5 {[%clk 0:02:59]} 9. f3 {[%clk 0:02:54]}  a5 {[%clk 0:02:57]} 10. h4 {[%clk 0:02:51]}  h5 {[%clk 0:02:56]} 11. g5 {[%clk 0:02:49]}  Nh7 {[%clk 0:02:57]} 12. Qd2 {[%clk 0:02:17]}  f6 {[%clk 0:02:56]} 13. gxf6 {[%clk 0:02:06]}  Bxf6 {[%clk 0:02:48]} 14. O-O-O {[%clk 0:01:55]}  Bxh4 {[%clk 0:02:47]} 15. Nh3 {[%clk 0:01:55]}  Bxh3 {[%clk 0:02:46]} 16. Rxh3 {[%clk 0:01:55]}  Bg5 {[%clk 0:02:46]} 17. Rg1 {[%clk 0:01:52]}  Rf4 {[%clk 0:02:25]} 18. Kb1 {[%clk 0:01:30]}  Kh8 {[%clk 0:02:21]} 19. Bxf4 {[%clk 0:01:02]}  Bxf4 {[%clk 0:02:21]} 20. Qd1 {[%clk 0:00:59]}  Qf6 {[%clk 0:02:20]} 21. Qf1 {[%clk 0:00:58]}  Rg8 {[%clk 0:02:13]} 22. Qg2 {[%clk 0:00:57]}  Rg7 {[%clk 0:02:10]} 23. Rhh1 {[%clk 0:00:53]}  Be3 {[%clk 0:01:50]} 24. Rf1 {[%clk 0:00:52]}  Bd4 {[%clk 0:01:50]} 25. Nb5 {[%clk 0:00:50]}  Be3 {[%clk 0:01:48]} 26. b3 {[%clk 0:00:36]}  Ng5 {[%clk 0:01:43]} 27. Kc2 {[%clk 0:00:32]}  Bf4 {[%clk 0:01:34]} 28. a3 {[%clk 0:00:31]}  a4 {[%clk 0:01:30]} 29. b4 {[%clk 0:00:25]}  Nb3 {[%clk 0:01:31]} 30. Qf2 {[%clk 0:00:23]}  c6 {[%clk 0:01:29]} 31. Nc3 {[%clk 0:00:20]}  Nd4+ {[%clk 0:01:29]} 32. Kb1 {[%clk 0:00:21]}  Bd2 {[%clk 0:01:24]} 33. Nxa4 {[%clk 0:00:18]}  Rf7 {[%clk 0:01:22]} 34. Rd1 {[%clk 0:00:16]}  Nxe4 {[%clk 0:01:19]} 35. Qg2 {[%clk 0:00:15]}  Nc3+ {[%clk 0:01:03]} 36. Nxc3 {[%clk 0:00:15]}  Bxc3 {[%clk 0:01:04]} 37. Bd3 {[%clk 0:00:13]}  e4 {[%clk 0:01:02]} 38. Bxe4 {[%clk 0:00:12]}  Nf5 {[%clk 0:01:02]} 39. Rdg1 {[%clk 0:00:11]}  Rg7 {[%clk 0:01:00]} 40. Qh3 {[%clk 0:00:10]}  Bd4 {[%clk 0:01:00]} 41. Bxf5 {[%clk 0:00:10]}  Bxg1 {[%clk 0:01:00]} 42. Rxg1 {[%clk 0:00:10]}  Qxf5+ {[%clk 0:00:56]} 43. Qxf5 {[%clk 0:00:10]}  gxf5 {[%clk 0:00:56]} 44. Rxg7 {[%clk 0:00:11]}  Kxg7 {[%clk 0:00:56]} 45. dxc6 {[%clk 0:00:12]}  bxc6 {[%clk 0:00:55]} 46. b5 {[%clk 0:00:13]}  cxb5 {[%clk 0:00:55]} 47. cxb5 {[%clk 0:00:13]}  h4 {[%clk 0:00:55]} 48. b6 {[%clk 0:00:14]}  h3 {[%clk 0:00:55]} 49. b7 {[%clk 0:00:15]}  h2 {[%clk 0:00:56]} 50. b8=Q {[%clk 0:00:16]}  h1=Q+ {[%clk 0:00:56]} 51. Kb2 {[%clk 0:00:17]}  Qg2+ {[%clk 0:00:55]} 52. Kb1 {[%clk 0:00:17]}  Qf1+ {[%clk 0:00:55]} 53. Kb2 {[%clk 0:00:17]}  Qf2+ {[%clk 0:00:55]} 54. Kb1 {[%clk 0:00:17]}  Qe1+ {[%clk 0:00:56]} 55. Kb2 {[%clk 0:00:17]}  Qd2+ {[%clk 0:00:56]} 56. Kb1 {[%clk 0:00:18]}  Qd3+ {[%clk 0:00:56]} 57. Kb2 {[%clk 0:00:18]}  Kf6 {[%clk 0:00:57]} 58. Qf8+ {[%clk 0:00:17]}  Kg5 {[%clk 0:00:56]} 59. a4 {[%clk 0:00:09]}  Qd4+ {[%clk 0:00:54]} 60. Kb3 {[%clk 0:00:09]}  Qb6+ {[%clk 0:00:54]} 61. Ka3 {[%clk 0:00:09]}  Qc5+ {[%clk 0:00:51]} 62. Kb3 {[%clk 0:00:09]}  Qd5+ {[%clk 0:00:52]} 63. Kb4 {[%clk 0:00:09]}  Qc5+ {[%clk 0:00:52]} 64. Kb3 {[%clk 0:00:09]}  Kf4 {[%clk 0:00:53]} 65. Qa8 {[%clk 0:00:06]}  d5 {[%clk 0:00:51]} 66. a5 {[%clk 0:00:06]}  Qc4+ {[%clk 0:00:51]} 67. Ka3 {[%clk 0:00:06]}  Kxf3 {[%clk 0:00:51]} 68. a6 {[%clk 0:00:06]}  f4 {[%clk 0:00:50]} 69. a7 {[%clk 0:00:07]}  Qa6+ {[%clk 0:00:45]} 70. Kb3 {[%clk 0:00:06]}  Qb6+ {[%clk 0:00:45]} 71. Ka3 {[%clk 0:00:06]}  Qa5+ {[%clk 0:00:45]} 72. Kb3 {[%clk 0:00:06]}  Kf2 {[%clk 0:00:45]} 73. Qb7 {[%clk 0:00:05]}  Qc5 {[%clk 0:00:38]} 74. a8=Q {[%clk 0:00:05]}  Qc4+ {[%clk 0:00:39]} 75. Ka3 {[%clk 0:00:06]}  f3 {[%clk 0:00:20]} 76. Qxd5 {[%clk 0:00:04]}  Qc1+ {[%clk 0:00:20]} 77. Ka4 {[%clk 0:00:03]}  Qa1+ {[%clk 0:00:19]} 78. Kb5 {[%clk 0:00:03]}  Qb2+ {[%clk 0:00:20]} 79. Kc4 {[%clk 0:00:02]}  Qc2+ {[%clk 0:00:19]} 80. Kd4 {[%clk 0:00:03]}  Qd2+ {[%clk 0:00:19]} 81. Ke5 {[%clk 0:00:04]}  Qg5+ {[%clk 0:00:19]} 82. Ke6 {[%clk 0:00:04]}  Qg6+ {[%clk 0:00:18]} 83. Ke5 {[%clk 0:00:04]}  Qg5+ {[%clk 0:00:18]} 84. Ke4 {[%clk 0:00:05]}  Qg4+ {[%clk 0:00:18]} 85. Kd3 {[%clk 0:00:05]}  Qg6+ {[%clk 0:00:18]} 86. Qe4 {[%clk 0:00:05]}  Qd6+ {[%clk 0:00:18]} 87. Qad5 {[%clk 0:00:05]}  Qa3+ {[%clk 0:00:18]} 88. Kd4 {[%clk 0:00:06]}  Qb2+ {[%clk 0:00:18]} 89. Kc5 {[%clk 0:00:06]}  Qa3+ {[%clk 0:00:18]} 90. Qb4 {[%clk 0:00:05]}  Qa7+ {[%clk 0:00:18]} 91. Kc4 {[%clk 0:00:05]}  Qa6+ {[%clk 0:00:17]} 92. Qbb5 {[%clk 0:00:04]}  Qa2+ {[%clk 0:00:17]} 93. Kc3 {[%clk 0:00:04]}  Qa3+ {[%clk 0:00:16]} 94. Kc2 {[%clk 0:00:04]}  Qa1 {[%clk 0:00:10]} 95. Qd2+ {[%clk 0:00:04]}  Kg3 {[%clk 0:00:08]} 96. Qbg5+ {[%clk 0:00:04]}  Kh3 {[%clk 0:00:09]} 97. Qh5+ {[%clk 0:00:02]}  Kg3 {[%clk 0:00:09]} 98. Qdg5+ {[%clk 0:00:02]}  Kf2 {[%clk 0:00:10]} 99. Qh2+ {[%clk 0:00:03]}  Ke1 {[%clk 0:00:10]} 100. Qgg1# {[%clk 0:00:03]} 1-0


[Site "https://www.chess.com"]

[Event "Titled Tuesday Blitz May 03 Late 2022"]
[White "Herrera Reyes, Jose Antonio"]
[Black "Hambleton, Aman"]
[WhiteFideId "2274914"]
[BlackFideId "2606577"]
[WhiteElo "2361"]
[BlackElo "2552"]
[Result "1-0"]
[Round "11"]
[TimeControl "180+1"]
[Date "2022.05.03"]
[WhiteClock "0:00:19"]
[BlackClock "0:00:02"]

1. e4 {[%clk 0:03:00]}  c5 {[%clk 0:02:58]} 2. Nc3 {[%clk 0:03:00]}  e6 {[%clk 0:02:47]} 3. g3 {[%clk 0:02:57]}  a6 {[%clk 0:02:47]} 4. Bg2 {[%clk 0:02:57]}  b5 {[%clk 0:02:47]} 5. Nge2 {[%clk 0:02:53]}  Bb7 {[%clk 0:02:47]} 6. O-O {[%clk 0:02:52]}  Nf6 {[%clk 0:02:44]} 7. d3 {[%clk 0:02:38]}  d5 {[%clk 0:02:40]} 8. exd5 {[%clk 0:02:35]}  Nxd5 {[%clk 0:02:39]} 9. Ne4 {[%clk 0:02:34]}  Nc6 {[%clk 0:02:25]} 10. Bg5 {[%clk 0:02:24]}  Qb6 {[%clk 0:00:33]} 11. c4 {[%clk 0:02:22]}  Nc7 {[%clk 0:00:23]} 12. a4 {[%clk 0:02:03]}  h6 {[%clk 0:00:06]} 13. Be3 {[%clk 0:01:42]}  bxc4 {[%clk 0:00:06]} 14. d4 {[%clk 0:01:40]}  Nd5 {[%clk 0:00:03]} 15. dxc5 {[%clk 0:01:27]}  Nxe3 {[%clk 0:00:04]} 16. cxb6 {[%clk 0:00:53]}  Nxd1 {[%clk 0:00:04]} 17. Rfxd1 {[%clk 0:00:53]}  Be7 {[%clk 0:00:01]} 18. Rac1 {[%clk 0:00:44]}  O-O {[%clk 0:00:01]} 19. Rd7 {[%clk 0:00:43]}  Rab8 {[%clk 0:00:02]} 20. Rxc4 {[%clk 0:00:37]}  Rfd8 {[%clk 0:00:01]} 21. Rxb7 {[%clk 0:00:35]}  Rd1+ {[%clk 0:00:01]} 22. Bf1 {[%clk 0:00:34]}  Rxb7 {[%clk 0:00:02]} 23. Rxc6 {[%clk 0:00:34]}  a5 {[%clk 0:00:02]} 24. N2c3 {[%clk 0:00:30]}  Rd4 {[%clk 0:00:01]} 25. Ba6 {[%clk 0:00:28]}  Rb8 {[%clk 0:00:02]} 26. b7 {[%clk 0:00:24]}  Kh7 {[%clk 0:00:02]} 27. Rc8 {[%clk 0:00:23]}  Rd8 {[%clk 0:00:03]} 28. Rc7 {[%clk 0:00:22]}  Bb4 {[%clk 0:00:02]} 29. Rxf7 {[%clk 0:00:21]}  Kg8 {[%clk 0:00:02]} 30. Rc7 {[%clk 0:00:21]}  Kf8 {[%clk 0:00:02]} 31. Nb5 {[%clk 0:00:20]}  Rd1+ {[%clk 0:00:01]} 32. Kg2 {[%clk 0:00:20]}  Rdd8 {[%clk 0:00:01]} 33. Nc5 {[%clk 0:00:18]}  Bxc5 {[%clk 0:00:01]} 34. Rxc5 {[%clk 0:00:19]}  Ke7 {[%clk 0:00:02]} 35. Rc7+ {[%clk 0:00:19]}  Kf6 {[%clk 0:00:02]} 36. Nc3 {[%clk 0:00:18]}  Rd6 {[%clk 0:00:02]} 37. Ne4+ {[%clk 0:00:18]}  Ke5 {[%clk 0:00:02]} 38. Nxd6 {[%clk 0:00:19]} 1-0


[Site "https://www.chess.com"]